Workbook

Sheet data
B1: Data
B3: Year | C3: Product | D3: Region | E3: Sales ($) | H3: Years | I3: Products | J3: Regions
B4: 2001 | C4: Biscuits | D4: North | E4: 1140 | H4: 2001 | I4: Biscuits | J4: North
B5: 2001 | C5: Biscuits | D5: South | E5: 1800 | H5: 2002 | I5: Chocolates | J5: South
B6: 2001 | C6: Chocolates | D6: North | E6: 950 | H6: 2003 | I6: Chocochips
B7: 2001 | C7: Chocolates | D7: South | E7: 1570 | H7: 2004 | I7: Cookies
B8: 2001 | C8: Chocochips | D8: North | E8: 1120 | H8: 2005 | I8: Nutri Bars
B9: 2001 | C9: Chocochips | D9: South | E9: 1510 | H9: 2006 | I9: Jelly Beans
B10: 2001 | C10: Cookies | D10: North | E10: 1040 | H10: 2007
B11: 2001 | C11: Cookies | D11: South | E11: 1350 | H11: 2008
B12: 2001 | C12: Nutri Bars | D12: North | E12: 930 | H12: 2009
B13: 2001 | C13: Nutri Bars | D13: South | E13: 1210 | H13: 2010
B14: 2001 | C14: Jelly Beans | D14: North | E14: 920 | H14: 2011
B15: 2001 | C15: Jelly Beans | D15: South | E15: 1320
B16: 2002 | C16: Biscuits | D16: North | E16: 1210
B17: 2002 | C17: Biscuits | D17: South | E17: 1370
B18: 2002 | C18: Chocolates | D18: North | E18: 1110
B19: 2002 | C19: Chocolates | D19: South | E19: 1370
B20: 2002 | C20: Chocochips | D20: North | E20: 990
B21: 2002 | C21: Chocochips | D21: South | E21: 1480
B22: 2002 | C22: Cookies | D22: North | E22: 1160
B23: 2002 | C23: Cookies | D23: South | E23: 1350
B24: 2002 | C24: Nutri Bars | D24: North | E24: 980
B25: 2002 | C25: Nutri Bars | D25: South | E25: 1280
B26: 2002 | C26: Jelly Beans | D26: North | E26: 1110
B27: 2002 | C27: Jelly Beans | D27: South | E27: 1740
B28: 2003 | C28: Biscuits | D28: North | E28: 880
B29: 2003 | C29: Biscuits | D29: South | E29: 1350
B30: 2003 | C30: Chocolates | D30: North | E30: 990
B31: 2003 | C31: Chocolates | D31: South | E31: 1110
B32: 2003 | C32: Chocochips | D32: North | E32: 1140
B33: 2003 | C33: Chocochips | D33: South | E33: 820
B34: 2003 | C34: Cookies | D34: North | E34: 970
B35: 2003 | C35: Cookies | D35: South | E35: 1600
B36: 2003 | C36: Nutri Bars | D36: North | E36: 920
B37: 2003 | C37: Nutri Bars | D37: South | E37: 1870
B38: 2003 | C38: Jelly Beans | D38: North | E38: 1080
B39: 2003 | C39: Jelly Beans | D39: South | E39: 1430
B40: 2004 | C40: Biscuits | D40: North | E40: 860
B41: 2004 | C41: Biscuits | D41: South | E41: 1470
B42: 2004 | C42: Chocolates | D42: North | E42: 1080
B43: 2004 | C43: Chocolates | D43: South | E43: 1950
B44: 2004 | C44: Chocochips | D44: North | E44: 1050
B45: 2004 | C45: Chocochips | D45: South | E45: 1940
B46: 2004 | C46: Cookies | D46: North | E46: 890
B47: 2004 | C47: Cookies | D47: South | E47: 1840
B48: 2004 | C48: Nutri Bars | D48: North | E48: 1230
B49: 2004 | C49: Nutri Bars | D49: South | E49: 1550
B50: 2004 | C50: Jelly Beans | D50: North | E50: 1000
B51: 2004 | C51: Jelly Beans | D51: South | E51: 1190
B52: 2005 | C52: Biscuits | D52: North | E52: 950
B53: 2005 | C53: Biscuits | D53: South | E53: 1420
B54: 2005 | C54: Chocolates | D54: North | E54: 1140
B55: 2005 | C55: Chocolates | D55: South | E55: 1090
B56: 2005 | C56: Chocochips | D56: North | E56: 980
B57: 2005 | C57: Chocochips | D57: South | E57: 1600
B58: 2005 | C58: Cookies | D58: North | E58: 1010
B59: 2005 | C59: Cookies | D59: South | E59: 1290
B60: 2005 | C60: Nutri Bars | D60: North | E60: 1060
B61: 2005 | C61: Nutri Bars | D61: South | E61: 1490
B62: 2005 | C62: Jelly Beans | D62: North | E62: 950
B63: 2005 | C63: Jelly Beans | D63: South | E63: 980
B64: 2006 | C64: Biscuits | D64: North | E64: 1050
B65: 2006 | C65: Biscuits | D65: South | E65: 1490
B66: 2006 | C66: Chocolates | D66: North | E66: 1030
B67: 2006 | C67: Chocolates | D67: South | E67: 1460
B68: 2006 | C68: Chocochips | D68: North | E68: 860
B69: 2006 | C69: Chocochips | D69: South | E69: 1050
B70: 2006 | C70: Cookies | D70: North | E70: 910
B71: 2006 | C71: Cookies | D71: South | E71: 1430
B72: 2006 | C72: Nutri Bars | D72: North | E72: 950
B73: 2006 | C73: Nutri Bars | D73: South | E73: 1320
B74: 2006 | C74: Jelly Beans | D74: North | E74: 1060
B75: 2006 | C75: Jelly Beans | D75: South | E75: 1790
B76: 2007 | C76: Biscuits | D76: North | E76: 1020
B77: 2007 | C77: Biscuits | D77: South | E77: 1480
B78: 2007 | C78: Chocolates | D78: North | E78: 980
B79: 2007 | C79: Chocolates | D79: South | E79: 1400
B80: 2007 | C80: Chocochips | D80: North | E80: 890
B81: 2007 | C81: Chocochips | D81: South | E81: 1760
B82: 2007 | C82: Cookies | D82: North | E82: 970
B83: 2007 | C83: Cookies | D83: South | E83: 1190
B84: 2007 | C84: Nutri Bars | D84: North | E84: 870
B85: 2007 | C85: Nutri Bars | D85: South | E85: 1010
B86: 2007 | C86: Jelly Beans | D86: North | E86: 880
B87: 2007 | C87: Jelly Beans | D87: South | E87: 1260
B88: 2008 | C88: Biscuits | D88: North | E88: 1070
B89: 2008 | C89: Biscuits | D89: South | E89: 1590
B90: 2008 | C90: Chocolates | D90: North | E90: 890
B91: 2008 | C91: Chocolates | D91: South | E91: 1430
B92: 2008 | C92: Chocochips | D92: North | E92: 1050
B93: 2008 | C93: Chocochips | D93: South | E93: 780
B94: 2008 | C94: Cookies | D94: North | E94: 1120
B95: 2008 | C95: Cookies | D95: South | E95: 1220
B96: 2008 | C96: Nutri Bars | D96: North | E96: 950
B97: 2008 | C97: Nutri Bars | D97: South | E97: 1260
B98: 2008 | C98: Jelly Beans | D98: North | E98: 1120
B99: 2008 | C99: Jelly Beans | D99: South | E99: 1620
B100: 2009 | C100: Biscuits | D100: North | E100: 850
B101: 2009 | C101: Biscuits | D101: South | E101: 1390
B102: 2009 | C102: Chocolates | D102: North | E102: 1150
B103: 2009 | C103: Chocolates | D103: South | E103: 1470
B104: 2009 | C104: Chocochips | D104: North | E104: 1080
B105: 2009 | C105: Chocochips | D105: South | E105: 1260
B106: 2009 | C106: Cookies | D106: North | E106: 1110
B107: 2009 | C107: Cookies | D107: South | E107: 1810
B108: 2009 | C108: Nutri Bars | D108: North | E108: 950
B109: 2009 | C109: Nutri Bars | D109: South | E109: 1460
B110: 2009 | C110: Jelly Beans | D110: North | E110: 1180
B111: 2009 | C111: Jelly Beans | D111: South | E111: 1400
B112: 2010 | C112: Biscuits | D112: North | E112: 1010
B113: 2010 | C113: Biscuits | D113: South | E113: 1420
B114: 2010 | C114: Chocolates | D114: North | E114: 970
B115: 2010 | C115: Chocolates | D115: South | E115: 1370
B116: 2010 | C116: Chocochips | D116: North | E116: 1100
B117: 2010 | C117: Chocochips | D117: South | E117: 1360
B118: 2010 | C118: Cookies | D118: North | E118: 1120
B119: 2010 | C119: Cookies | D119: South | E119: 1380
B120: 2010 | C120: Nutri Bars | D120: North | E120: 1020
B121: 2010 | C121: Nutri Bars | D121: South | E121: 980
B122: 2010 | C122: Jelly Beans | D122: North | E122: 1130
B123: 2010 | C123: Jelly Beans | D123: South | E123: 2100
B124: 2011 | C124: Biscuits | D124: North | E124: 1080
B125: 2011 | C125: Biscuits | D125: South | E125: 1360
B126: 2011 | C126: Chocolates | D126: North | E126: 920
B127: 2011 | C127: Chocolates | D127: South | E127: 1020
B128: 2011 | C128: Chocochips | D128: North | E128: 1200
B129: 2011 | C129: Chocochips | D129: South | E129: 1750
B130: 2011 | C130: Cookies | D130: North | E130: 1060
B131: 2011 | C131: Cookies | D131: South | E131: 1070
B132: 2011 | C132: Nutri Bars | D132: North | E132: 1080
B133: 2011 | C133: Nutri Bars | D133: South | E133: 1760
B134: 2011 | C134: Jelly Beans | D134: North | E134: 1090
B135: 2011 | C135: Jelly Beans | D135: South | E135: 1700

Sheet calculations
B1: Calculations
B3: Selected year | C3: =valYearPicked -> 2007 | D3: 2007
B4: Selected Product | C4: =valProductPicked -> Cookies | D4: Cookies | E4: TRUE
B5: Selected Region | C5: =valRegionPicked -> South | D5: South
G6: Data for the chart
B7: Product-wise Sales | C7: Sales ($)
B8: Products | C8: =C17 -> North | D8: =D17 -> South | E8: All Regions | G8: =B8 -> Products | H8: North | I8: South | J8: All Regions | K8: Highlighted
B9: =data!I4 -> Biscuits | C9: =SUMIFS(tblSales[Sales ($)],tblSales[Year],$C$3,tblSales[Product],$B9,tblSales[Region],C$8) -> 1020 | D9: =SUMIFS(tblSales[Sales ($)],tblSales[Year],$C$3,tblSales[Product],$B9,tblSales[Region],D$8) -> 1480 | E9: =C9+D9 -> 2500 | G9: Biscuits | H9: =IF($C$5=H$8,C9,NA()) ->  | I9: =IF($C$5=I$8,D9,NA()) -> 1480 | K9: =IF(G9=valProductPicked,INDEX($H9:$J9,MATCH(valRegionPicked,$H$8:$J$8,0)),NA()) -> 
B10: =data!I5 -> Chocolates | C10: =SUMIFS(tblSales[Sales ($)],tblSales[Year],$C$3,tblSales[Product],$B10,tblSales[Region],C$8) -> 980 | D10: =SUMIFS(tblSales[Sales ($)],tblSales[Year],$C$3,tblSales[Product],$B10,tblSales[Region],D$8) -> 1400 | E10: =C10+D10 -> 2380 | G10: Chocolates | H10: =IF($C$5=H$8,C10,NA()) ->  | I10: 1400 | K10: =IF(G10=valProductPicked,INDEX($H10:$J10,MATCH(valRegionPicked,$H$8:$J$8,0)),NA()) -> 
B11: =data!I6 -> Chocochips | C11: =SUMIFS(tblSales[Sales ($)],tblSales[Year],$C$3,tblSales[Product],$B11,tblSales[Region],C$8) -> 890 | D11: =SUMIFS(tblSales[Sales ($)],tblSales[Year],$C$3,tblSales[Product],$B11,tblSales[Region],D$8) -> 1760 | E11: 2650 | G11: Chocochips | I11: 1760 | K11: =IF(G11=valProductPicked,INDEX($H11:$J11,MATCH(valRegionPicked,$H$8:$J$8,0)),NA()) -> 
B12: =data!I7 -> Cookies | C12: =SUMIFS(tblSales[Sales ($)],tblSales[Year],$C$3,tblSales[Product],$B12,tblSales[Region],C$8) -> 970 | D12: =SUMIFS(tblSales[Sales ($)],tblSales[Year],$C$3,tblSales[Product],$B12,tblSales[Region],D$8) -> 1190 | E12: 2160 | G12: Cookies | I12: 1190 | K12: =IF(G12=valProductPicked,INDEX($H12:$J12,MATCH(valRegionPicked,$H$8:$J$8,0)),NA()) -> 1190
B13: =data!I8 -> Nutri Bars | C13: =SUMIFS(tblSales[Sales ($)],tblSales[Year],$C$3,tblSales[Product],$B13,tblSales[Region],C$8) -> 870 | D13: =SUMIFS(tblSales[Sales ($)],tblSales[Year],$C$3,tblSales[Product],$B13,tblSales[Region],D$8) -> 1010 | E13: 1880 | G13: Nutri Bars | I13: 1010 | K13: =IF(G13=valProductPicked,INDEX($H13:$J13,MATCH(valRegionPicked,$H$8:$J$8,0)),NA()) -> 
B14: =data!I9 -> Jelly Beans | C14: =SUMIFS(tblSales[Sales ($)],tblSales[Year],$C$3,tblSales[Product],$B14,tblSales[Region],C$8) -> 880 | D14: =SUMIFS(tblSales[Sales ($)],tblSales[Year],$C$3,tblSales[Product],$B14,tblSales[Region],D$8) -> 1260 | E14: 2140 | G14: Jelly Beans | I14: 1260 | K14: =IF(G14=valProductPicked,INDEX($H14:$J14,MATCH(valRegionPicked,$H$8:$J$8,0)),NA()) -> 
B16: Yearly Sales Break-up | G16: Title
B17: Year | C17: North | D17: South | E17: All | G17: ="Sales in "&valRegionPicked&" by Product - "&valYearPicked -> Sales in South by Product - 2007
B18: =data!H4 -> 2001 | C18: =SUMIFS(tblSales[Sales ($)],tblSales[Year],$B18,tblSales[Product],$C$4,tblSales[Region],C$17) -> 1040 | D18: =SUMIFS(tblSales[Sales ($)],tblSales[Year],$B18,tblSales[Product],$C$4,tblSales[Region],D$17) -> 1350 | E18: =C18+D18 -> 2390
B19: =data!H5 -> 2002 | C19: =SUMIFS(tblSales[Sales ($)],tblSales[Year],$B19,tblSales[Product],$C$4,tblSales[Region],C$17) -> 1160 | D19: =SUMIFS(tblSales[Sales ($)],tblSales[Year],$B19,tblSales[Product],$C$4,tblSales[Region],D$17) -> 1350 | E19: =C19+D19 -> 2510 | G19: TRUE
B20: =data!H6 -> 2003 | C20: =SUMIFS(tblSales[Sales ($)],tblSales[Year],$B20,tblSales[Product],$C$4,tblSales[Region],C$17) -> 970 | D20: =SUMIFS(tblSales[Sales ($)],tblSales[Year],$B20,tblSales[Product],$C$4,tblSales[Region],D$17) -> 1600 | E20: 2570 | G20: =IF(valHelpStatus,"Hide help","Show help") -> Hide help
B21: =data!H7 -> 2004 | C21: =SUMIFS(tblSales[Sales ($)],tblSales[Year],$B21,tblSales[Product],$C$4,tblSales[Region],C$17) -> 890 | D21: =SUMIFS(tblSales[Sales ($)],tblSales[Year],$B21,tblSales[Product],$C$4,tblSales[Region],D$17) -> 1840 | E21: 2730
B22: =data!H8 -> 2005 | C22: =SUMIFS(tblSales[Sales ($)],tblSales[Year],$B22,tblSales[Product],$C$4,tblSales[Region],C$17) -> 1010 | D22: =SUMIFS(tblSales[Sales ($)],tblSales[Year],$B22,tblSales[Product],$C$4,tblSales[Region],D$17) -> 1290 | E22: 2300
B23: =data!H9 -> 2006 | C23: =SUMIFS(tblSales[Sales ($)],tblSales[Year],$B23,tblSales[Product],$C$4,tblSales[Region],C$17) -> 910 | D23: =SUMIFS(tblSales[Sales ($)],tblSales[Year],$B23,tblSales[Product],$C$4,tblSales[Region],D$17) -> 1430 | E23: 2340
B24: =data!H10 -> 2007 | C24: =SUMIFS(tblSales[Sales ($)],tblSales[Year],$B24,tblSales[Product],$C$4,tblSales[Region],C$17) -> 970 | D24: =SUMIFS(tblSales[Sales ($)],tblSales[Year],$B24,tblSales[Product],$C$4,tblSales[Region],D$17) -> 1190 | E24: 2160
B25: =data!H11 -> 2008 | C25: =SUMIFS(tblSales[Sales ($)],tblSales[Year],$B25,tblSales[Product],$C$4,tblSales[Region],C$17) -> 1120 | D25: =SUMIFS(tblSales[Sales ($)],tblSales[Year],$B25,tblSales[Product],$C$4,tblSales[Region],D$17) -> 1220 | E25: 2340
B26: =data!H12 -> 2009 | C26: =SUMIFS(tblSales[Sales ($)],tblSales[Year],$B26,tblSales[Product],$C$4,tblSales[Region],C$17) -> 1110 | D26: =SUMIFS(tblSales[Sales ($)],tblSales[Year],$B26,tblSales[Product],$C$4,tblSales[Region],D$17) -> 1810 | E26: 2920
B27: =data!H13 -> 2010 | C27: =SUMIFS(tblSales[Sales ($)],tblSales[Year],$B27,tblSales[Product],$C$4,tblSales[Region],C$17) -> 1120 | D27: =SUMIFS(tblSales[Sales ($)],tblSales[Year],$B27,tblSales[Product],$C$4,tblSales[Region],D$17) -> 1380 | E27: 2500
B28: =data!H14 -> 2011 | C28: =SUMIFS(tblSales[Sales ($)],tblSales[Year],$B28,tblSales[Product],$C$4,tblSales[Region],C$17) -> 1060 | D28: =SUMIFS(tblSales[Sales ($)],tblSales[Year],$B28,tblSales[Product],$C$4,tblSales[Region],D$17) -> 1070 | E28: 2130

Sheet Interactive Sales Chart
B1: Interactive Sales Chart
B5: Pick an year | F5: =calculations!G17 -> Sales in South by Product - 2007
B6: =calculations!B18 -> 2001
B7: =calculations!B19 -> 2002
B8: =calculations!B20 -> 2003
B9: =calculations!B21 -> 2004
B10: =calculations!B22 -> 2005
B11: =calculations!B23 -> 2006
B12: =calculations!B24 -> 2007
B13: =calculations!B25 -> 2008
B14: =calculations!B26 -> 2009
B15: =calculations!B27 -> 2010
B16: =calculations!B28 -> 2011
B18: Region
B19: All Regions
B20: =data!J4 -> North
B21: =data!J5 -> South | G21: =INDEX(lstProducts,COLUMNS($G$18:G18)) -> Biscuits | H21: =INDEX(lstProducts,COLUMNS($G$18:H18)) -> Chocolates | I21: =INDEX(lstProducts,COLUMNS($G$18:I18)) -> Chocochips | J21: =INDEX(lstProducts,COLUMNS($G$18:J18)) -> Cookies | K21: =INDEX(lstProducts,COLUMNS($G$18:K18)) -> Nutri Bars | L21: =INDEX(lstProducts,COLUMNS($G$18:L18)) -> Jelly Beans
